[Event "57th Biel Festival MTO 2024"]
[White "Smirnov,Mark"]
[Black "Sukandar,Irine Kharisma"]
[Site "Biel"]
[Round "6.26"]
[Annotator "ChessBase"]
[Result "1/2-1/2"]
[Date "2024.07.20"]
[WhiteElo "2203"]
[BlackElo "2338"]
[PlyCount "99"]
[TimeControl "60"]

1. e4 {[%emt 0:0:4]} e5 {[%emt 0:0:44]} 2. Nf3 {[%emt 0:0:51]} Nc6 {[%emt 0:0:21]} 3. Bb5 {[%emt 0:0:18]} Nge7 {[%emt 0:3:8]} 4. O-O {[%emt 0:4:30]} a6 {[%emt 0:1:8]} 5. Ba4 {[%emt 0:1:37]} g6 {[%emt 0:9:47]} 6. c3 {[%emt 0:2:55]} Bg7 {[%emt 0:1:59]} 7. d4 {[%emt 0:2:16]} b5 {[%emt 0:0:40]} 8. Bb3 {[%emt 0:4:38]} d6 {[%emt 0:6:23]} 9. Be3 {[%emt 0:11:48]} O-O {[%emt 0:1:49]} 10. dxe5 {[%emt 0:6:8]} dxe5 {[%emt 0:3:16]} 11. Bc5 {[%emt 0:4:36]} Bb7 {[%emt 0:9:46]} 12. Bd5 {[%emt 0:4:26]} Bf6 {[%emt 0:6:14]} 13. a4 {[%emt 0:7:43]} Re8 {[%emt 0:3:28]} 14. Bxe7 {[%emt 0:2:32]} Qxe7 {[%emt 0:0:23]} 15. Na3 {[%emt 0:7:0]} Rad8 {[%emt 0:13:11]} 16. Qe2 {[%emt 0:24:4]} b4 {[%emt 0:1:49]} 17. Nc2 {[%emt 0:5:55]} bxc3 {[%emt 0:2:23]} 18. bxc3 {[%emt 0:0:10]} Qc5 {[%emt 0:1:57]} 19. Nb4 {[%emt 0:12:55]} Nxb4 {[%emt 0:9:53]} 20. cxb4 {[%emt 0:0:5]} Qb6 {[%emt 0:0:54]} 21. Bxb7 {[%emt 0:0:27]} Qxb7 {[%emt 0:0:4]} 22. b5 {[%emt 0:0:52]} Re6 {[%emt 0:5:41]} 23. Rfc1 {[%emt 0:2:19]} axb5 {[%emt 0:3:42]} 24. axb5 {[%emt 0:0:2]} Red6 {[%emt 0:2:44]} 25. Rc3 {[%emt 0:2:26]} Bg7 {[%emt 0:5:51]} 26. h3 {[%emt 0:1:12]} R6d7 {[%emt 0:3:21]} 27. Qc4 {[%emt 0:1:20]} Qb6 {[%emt 0:0:41]} 28. Qc6 {[%emt 0:0:39]} Qb8 {[%emt 0:9:27]} 29. Rca3 {[%emt 0:0:15]} Rd6 {[%emt 0:0:59]} 30. Ra8 {[%emt 0:0:21]} Rxc6 {[%emt 0:0:29]} 31. Rxb8 {[%emt 0:0:3]} Rxb8 {[%emt 0:1:18]} 32. bxc6 {[%emt 0:0:2]} f5 {[%emt 0:1:59]} 33. Ra7 {[%emt 0:1:3]} fxe4 {[%emt 0:0:6]} 34. Ng5 {[%emt 0:0:10]} e3 {[%emt 0:0:6]} 35. fxe3 {[%emt 0:0:49]} Bh6 {[%emt 0:0:55]} 36. h4 {[%emt 0:1:27]} Rc8 {[%emt 0:0:47]} 37. Kf2 {[%emt 0:0:30]} Bxg5 {[%emt 0:0:24]} 38. hxg5 {[%emt 0:0:2]} Kf7 {[%emt 0:0:8]} 39. Kf3 {[%emt 0:0:37]} Ke6 {[%emt 0:0:15]} 40. Ke4 {[%emt 0:0:8]} Kd6 {[%emt 0:1:41]} 41. Ra1 {[%emt 0:50:52]} Rb8 {[%emt 0:9:34]} 42. Rh1 {[%emt 0:0:0]} Rb4+ {[%emt 0:0:23]} 43. Kf3 {[%emt 0:0:0]} Rc4 {[%emt 0:1:7]} 44. Rxh7 {[%emt 0:0:0]} Rxc6 {[%emt 0:0:30]} 45. Rg7 {[%emt 0:0:0]} Kd5 {[%emt 0:0:33]} 46. e4+ {[%emt 0:0:0]} Kc5 {[%emt 0:13:30]} 47. Re7 {[%emt 0:0:0]} Kd6 {[%emt 0:0:19]} 48. Rg7 {[%emt 0:0:0]} Kc5 {[%emt 0:0:4]} 49. Re7 {[%emt 0:0:0]} Kd6 {[%emt 0:0:56]} 50. Rg7 {[%emt 0:0:37]} 1/2-1/2

[Event "57th Biel Festival MTO 2024"]
[White "Ritviz,Parab"]
[Black "Song,Ethan"]
[Site "Biel"]
[Round "6.27"]
[Annotator "ChessBase"]
[Result "1-0"]
[Date "2024.07.20"]
[WhiteElo "2334"]
[BlackElo "2244"]
[PlyCount "103"]
[TimeControl "60"]

1. e4 {[%emt 0:0:12]} e5 {[%emt 0:0:42]} 2. Nf3 Nc6 {[%emt 0:0:40]} 3. Bb5 {[%emt 0:0:52]} Nf6 {[%emt 0:0:6]} 4. d3 {[%emt 0:0:27]} Bc5 {[%emt 0:0:21]} 5. Bxc6 {[%emt 0:0:18]} dxc6 {[%emt 0:1:24]} 6. Nbd2 {[%emt 0:2:34]} Nd7 {[%emt 0:10:14]} 7. O-O {[%emt 0:15:32]} O-O 8. Nc4 {[%emt 0:5:2]} f6 {[%emt 0:5:4]} 9. c3 {[%emt 0:5:40]} Nb6 10. Na5 {[%emt 0:9:13]} Qe7 {[%emt 0:1:48]} 11. h3 {[%emt 0:1:36]} Rb8 {[%emt 0:12:11]} 12. Qe2 {[%emt 0:3:6]} Be6 {[%emt 0:9:12]} 13. b4 {[%emt 0:14:42]} Bd6 14. a3 {[%emt 0:8:10]} c5 {[%emt 0:5:26]} 15. Re1 {[%emt 0:1:54]} cxb4 {[%emt 0:1:15]} 16. axb4 {[%emt 0:4:33]} c5 {[%emt 0:7:44]} 17. bxc5 {[%emt 0:0:0]} Bxc5 {[%emt 0:0:0]} 18. d4 {[%emt 0:2:10]} Bd6 {[%emt 0:6:24]} 19. d5 {[%emt 0:0:49]} Bd7 {[%emt 0:3:54]} 20. Be3 {[%emt 0:7:46]} Rfc8 {[%emt 0:8:29]} 21. c4 {[%emt 0:3:15]} Na4 {[%emt 0:0:0]} 22. Rec1 Bb4 {[%emt 0:7:15]} 23. Nb3 {[%emt 0:2:40]} b6 {[%emt 0:0:0]} 24. Bd2 a5 {[%emt 0:5:7]} 25. Ne1 {[%emt 0:2:35]} Rc7 {[%emt 0:0:0]} 26. Nd3 Bd6 {[%emt 0:0:0]} 27. Be3 {[%emt 0:12:35]} Rbc8 {[%emt 0:0:0]} 28. c5 bxc5 29. Nxa5 c4 {[%emt 0:0:0]} 30. Nb2 {[%emt 0:0:39]} Nxb2 {[%emt 0:0:0]} 31. Qxb2 {[%emt 0:11:17]} Bb4 {[%emt 0:0:0]} 32. Bb6 Bxa5 33. Bxa5 {[%emt 0:0:36]} Rc5 {[%emt 0:3:34]} 34. Bb4 {[%emt 0:0:0]} Rb5 {[%emt 0:0:0]} 35. Bxe7 {[%emt 0:0:0]} Rxb2 {[%emt 0:0:0]} 36. Ra7 {[%emt 0:0:0]} Be8 {[%emt 0:0:10]} 37. d6 {[%emt 0:0:0]} Rd2 {[%emt 0:0:46]} 38. Rc3 {[%emt 0:0:0]} Kf7 {[%emt 0:3:50]} 39. Bd8+ {[%emt 0:1:3]} Kf8 {[%emt 0:2:43]} 40. Be7+ {[%emt 0:0:12]} Kf7 {[%emt 0:1:5]} 41. Bd8+ {[%emt 0:25:5]} Kf8 {[%emt 0:0:18]} 42. Ba5 {[%emt 0:14:12]} Kg8 43. Rc7 {[%emt 0:7:59]} Rd1+ {[%emt 0:4:36]} 44. Kh2 {[%emt 0:0:0]} Ra8 {[%emt 0:0:28]} 45. Bb4 {[%emt 0:0:0]} Bb5 {[%emt 0:5:54]} 46. Rg3 {[%emt 0:0:0]} g6 {[%emt 0:0:6]} 47. Rf3 {[%emt 0:0:0]} Ra4 {[%emt 0:7:20]} 48. Bc5 Ra6 {[%emt 0:1:14]} 49. Rxf6 {[%emt 0:0:0]} Rc6 {[%emt 0:2:34]} 50. Re6 {[%emt 0:0:0]} Rxc7 {[%emt 0:0:26]} 51. dxc7 {[%emt 0:0:0]} Bd7 {[%emt 0:0:4]} 52. Re8+ {[%emt 0:0:0]} 1-0

[Event "57th Biel Festival MTO 2024"]
[White "Valsecchi,Alessio"]
[Black "Kuandykuly,Danis"]
[Site "Biel"]
[Round "6.28"]
[Annotator "RC"]
[Result "1/2-1/2"]
[Date "2024.07.20"]
[WhiteElo "2483"]
[BlackElo "1989"]
[PlyCount "99"]
[TimeControl "60"]

1. e4 {[%emt 0:0:4]} e5 {[%emt 0:4:52]} 2. Nf3 {[%emt 0:0:14]} Nc6 {[%emt 0:0:4]} 3. Bc4 {[%emt 0:0:22]} Bc5 {[%emt 0:0:7]} 4. c3 {[%emt 0:0:38]} Nf6 {[%emt 0:0:6]} 5. d3 {[%emt 0:0:22]} d6 {[%emt 0:0:5]} 6. h3 {[%emt 0:0:27]} a5 {[%emt 0:3:12]} 7. O-O {[%emt 0:6:40]} h6 {[%emt 0:1:17]} 8. d4 {[%emt 0:6:46]} Ba7 {[%emt 0:0:42]} 9. dxe5 {[%emt 0:5:23]} Nxe5 {[%emt 0:0:54]} 10. Nxe5 {[%emt 0:9:17]} dxe5 {[%emt 0:0:8]} 11. Qf3 {[%emt 0:0:21]} O-O {[%emt 0:4:2]} 12. a4 {[%emt 0:2:11]} Qe7 {[%emt 0:14:17]} 13. Na3 {[%emt 0:2:36]} c6 {[%emt 0:0:26]} 14. Be2 {[%emt 0:7:39]} Be6 {[%emt 0:19:2]} 15. Nc4 {[%emt 0:2:11]} Bxc4 {[%emt 0:1:17]} 16. Bxc4 {[%emt 0:0:9]} Rad8 {[%emt 0:6:8]} 17. Rb1 {[%emt 0:15:16]} Bc5 {[%emt 0:10:2]} 18. Qf5 {[%emt 0:7:47]} Kh8 {[%emt 0:6:7]} 19. Kh1 {[%emt 0:3:20]} g6 {[%emt 0:4:52]} 20. Qf3 {[%emt 0:0:45]} Kg7 {[%emt 0:0:12]} 21. Re1 {[%emt 0:6:23]} Rb8 {[%emt 0:16:2]} 22. Bf1 {[%emt 0:3:15]} b5 {[%emt 0:1:2]} 23. axb5 {[%emt 0:0:15]} cxb5 {[%emt 0:0:6]} 24. Ra1 {[%emt 0:0:37]} a4 {[%emt 0:3:22]} 25. Kg1 {[%emt 0:0:21]} Rfc8 {[%emt 0:2:7]} 26. Rd1 {[%emt 0:1:40]} Qe6 {[%emt 0:4:10]} 27. Bd3 {[%emt 0:2:34]} Qc6 {[%emt 0:1:8]} 28. Bc2 {[%emt 0:4:59]} Ra8 {[%emt 0:1:38]} 29. Qg3 {[%emt 0:2:58]} Re8 {[%emt 0:1:26]} 30. Qf3 {[%emt 0:3:19]} Rec8 {[%emt 0:0:27]} 31. Bb1 {[%emt 0:1:6]} b4 {[%emt 0:1:55]} 32. cxb4 {[%emt 0:0:22]} Bxb4 {[%emt 0:0:8]} 33. Ba2 {[%emt 0:0:12]} Rd8 {[%emt 0:0:40]} 34. Bd5 {[%emt 0:2:1]} Nxd5 {[%emt 0:0:12]} 35. exd5 {[%emt 0:0:7]} Qd6 {[%emt 0:2:16]} 36. Qe3 {[%emt 0:0:36]} h5 {[%emt 0:1:23]} 37. Rd3 {[%emt 0:4:7]} Bc5 {[%emt 0:1:47]} 38. Qh6+ {[%emt 0:5:25]} Kg8 {[%emt 0:0:1]} 39. Be3 {[%emt 0:0:49]} Rab8 {[%emt 0:1:10]} 40. Bxc5 {[%emt 0:6:1]} Qxc5 {[%emt 0:0:4]} 41. Rc1 {[%emt 0:4:16]} Qb5 {[%emt 0:3:7]} 42. Rg3 {[%emt 0:6:3]} Rb6 {[%emt 0:3:41]} 43. Qxh5 {[%emt 0:8:33]} Qxd5 {[%emt 0:2:51]} 44. Kh2 {[%emt 0:3:34]} e4 {[%emt 0:9:21]} 45. Qh4 {[%emt 0:7:0]} Rxb2 {[%emt 0:6:49]} 46. Rc7 {[%emt 0:0:46]} Qd6 {[%emt 0:4:25]} 47. Rc6 {[%emt 0:5:15]} Qxc6 {[%emt 0:0:40]} 48. Qxd8+ {[%emt 0:0:17]} Kg7 {[%emt 0:0:18]} 49. Qd4+ {[%emt 0:1:2]} Qf6 {[%emt 0:0:7]} 50. Qxa4 {[%emt 0:0:15]} 1/2-1/2

[Event "57th Biel Festival MTO 2024"]
[White "Kolbus,Dietmar"]
[Black "Deuer,Marius"]
[Site "Biel"]
[Round "6.29"]
[Annotator "ChessBase"]
[Result "0-1"]
[Date "2024.07.20"]
[WhiteElo "2234"]
[BlackElo "2435"]
[PlyCount "130"]
[TimeControl "60"]

1. c4 {[%emt 0:13:19]} Nf6 {[%emt 0:0:14]} 2. Nf3 {[%emt 0:1:23]} c5 {[%emt 0:0:7]} 3. Nc3 {[%emt 0:0:12]} Nc6 {[%emt 0:0:5]} 4. d4 {[%emt 0:1:3]} cxd4 {[%emt 0:0:8]} 5. Nxd4 {[%emt 0:0:6]} e6 {[%emt 0:0:3]} 6. a3 {[%emt 0:0:42]} Bc5 {[%emt 0:0:9]} 7. e3 {[%emt 0:0:20]} O-O {[%emt 0:0:8]} 8. b4 {[%emt 0:3:57]} Bb6 {[%emt 0:18:33]} 9. Bb2 {[%emt 0:7:48]} d5 {[%emt 0:16:56]} 10. Nf3 {[%emt 0:13:8]} Qe7 {[%emt 0:11:57]} 11. Na4 {[%emt 0:8:34]} Bc7 {[%emt 0:2:22]} 12. Qb3 {[%emt 0:6:14]} dxc4 {[%emt 0:4:54]} 13. Bxc4 {[%emt 0:0:18]} e5 {[%emt 0:1:25]} 14. Nc3 {[%emt 0:11:17]} e4 {[%emt 0:2:48]} 15. Nd4 {[%emt 0:5:32]} Ne5 {[%emt 0:15:15]} 16. h3 {[%emt 0:2:52]} a6 {[%emt 0:2:41]} 17. Be2 {[%emt 0:0:54]} Rd8 {[%emt 0:3:30]} 18. O-O-O {[%emt 0:2:24]} h5 {[%emt 0:3:44]} 19. Rd2 {[%emt 0:1:15]} b5 {[%emt 0:0:59]} 20. Rhd1 {[%emt 0:0:42]} g6 {[%emt 0:0:50]} 21. Kb1 {[%emt 0:0:59]} Bb7 {[%emt 0:2:20]} 22. Ba1 {[%emt 0:4:23]} Rac8 {[%emt 0:0:37]} 23. Bb2 {[%emt 0:0:27]} Bb6 {[%emt 0:2:6]} 24. Ba1 {[%emt 0:3:38]} Rd7 {[%emt 0:3:47]} 25. Bb2 {[%emt 0:0:47]} Rcd8 {[%emt 0:1:18]} 26. Ka1 {[%emt 0:2:3]} Rc8 {[%emt 0:3:29]} 27. Kb1 {[%emt 0:0:41]} Rdc7 {[%emt 0:1:48]} 28. Rc1 {[%emt 0:0:22]} Kh7 {[%emt 0:3:6]} 29. Bf1 {[%emt 0:2:27]} h4 {[%emt 0:3:19]} 30. Rcd1 {[%emt 0:2:23]} Kg8 {[%emt 0:4:38]} 31. Rc1 {[%emt 0:0:19]} Rd7 {[%emt 0:0:20]} 32. Rcd1 {[%emt 0:0:31]} Rcd8 {[%emt 0:0:22]} 33. Ba1 {[%emt 0:0:53]} Nh7 {[%emt 0:0:27]} 34. Bb2 {[%emt 0:0:55]} Ng5 {[%emt 0:0:6]} 35. Qc2 {[%emt 0:4:23]} Nd3 {[%emt 0:0:43]} 36. Nb3 {[%emt 0:1:43]} Nxb2 {[%emt 0:1:32]} 37. Rxd7 {[%emt 0:0:9]} Rxd7 {[%emt 0:0:4]} 38. Rxd7 {[%emt 0:0:9]} Qxd7 {[%emt 0:0:5]} 39. Kxb2 {[%emt 0:0:23]} Qd6 {[%emt 0:0:50]} 40. Qd2 {[%emt 0:0:42]} Qf6 {[%emt 0:0:11]} 41. Kc2 {[%emt 0:52:31]} Ne6 {[%emt 0:8:12]} 42. Qe1 {[%emt 0:0:0]} Bc6 {[%emt 0:6:5]} 43. Be2 {[%emt 0:0:0]} Qg5 {[%emt 0:0:41]} 44. Bf1 {[%emt 0:0:0]} Qe5 {[%emt 0:1:42]} 45. Be2 {[%emt 0:0:0]} Qh2 {[%emt 0:8:17]} 46. Qf1 {[%emt 0:0:0]} f5 {[%emt 0:1:23]} 47. Nd2 {[%emt 0:0:0]} Qd6 {[%emt 0:2:53]} 48. Qa1 {[%emt 0:0:0]} f4 {[%emt 0:3:40]} 49. Qa2 {[%emt 0:0:0]} fxe3 {[%emt 0:1:21]} 50. fxe3 {[%emt 0:0:0]} Bxe3 {[%emt 0:0:45]} 51. Ndxe4 {[%emt 0:0:0]} Qe5 {[%emt 0:0:5]} 52. Bf3 {[%emt 0:5:39]} Kg7 {[%emt 0:1:27]} 53. Kb1 {[%emt 0:0:0]} Nd4 {[%emt 0:7:42]} 54. Qb2 {[%emt 0:0:0]} Nxf3 {[%emt 0:0:6]} 55. gxf3 {[%emt 0:0:0]} Bd4 {[%emt 0:0:3]} 56. Qd2 {[%emt 0:0:0]} Bxc3 {[%emt 0:0:6]} 57. Nxc3 {[%emt 0:0:0]} Bxf3 {[%emt 0:0:11]} 58. Kb2 {[%emt 0:0:0]} Qg3 {[%emt 0:4:54]} 59. Qd7+ {[%emt 0:0:0]} Kh6 {[%emt 0:0:4]} 60. Qe6 {[%emt 0:0:0]} Bg2 {[%emt 0:0:56]} 61. Qxa6 {[%emt 0:0:46]} Bxh3 {[%emt 0:17:23]} 62. Qf6 {[%emt 0:1:31]} Bf5 {[%emt 0:2:15]} 63. Nxb5 {[%emt 0:2:17]} Qf2+ {[%emt 0:1:22]} 64. Kc3 {[%emt 0:0:17]} Qe3+ {[%emt 0:0:9]} 65. Kc4 {[%emt 0:1:37]} Be6+ {[%emt 0:0:0]} 0-1

[Event "57th Biel Festival MTO 2024"]
[White "Vantika Agrawal"]
[Black "Mostertman,Milan"]
[Site "Biel"]
[Round "6.30"]
[Annotator "ChessBase"]
[Result "0-1"]
[Date "2024.07.20"]
[WhiteElo "2390"]
[BlackElo "2231"]
[PlyCount "104"]
[TimeControl "60"]

1. d4 {[%emt 0:0:18]} d5 {[%emt 0:0:16]} 2. c4 {[%emt 0:0:6]} c6 {[%emt 0:0:9]} 3. Nf3 {[%emt 0:0:7]} Nf6 {[%emt 0:0:13]} 4. e3 {[%emt 0:0:7]} e6 {[%emt 0:0:26]} 5. Nbd2 {[%emt 0:0:13]} Nbd7 {[%emt 0:4:45]} 6. b3 {[%emt 0:0:45]} Bb4 {[%emt 0:2:55]} 7. Bb2 {[%emt 0:3:50]} Ne4 {[%emt 0:5:15]} 8. a3 {[%emt 0:3:49]} Bxd2+ {[%emt 0:0:7]} 9. Nxd2 {[%emt 0:0:6]} f5 {[%emt 0:0:9]} 10. Bd3 {[%emt 0:4:55]} O-O {[%emt 0:1:51]} 11. O-O {[%emt 0:0:56]} g5 {[%emt 0:12:9]} 12. f3 {[%emt 0:4:7]} Nd6 {[%emt 0:9:8]} 13. e4 {[%emt 0:3:21]} b5 {[%emt 0:7:28]} 14. c5 {[%emt 0:15:27]} Ne8 {[%emt 0:10:58]} 15. Qc2 {[%emt 0:6:15]} Ng7 {[%emt 0:2:14]} 16. exd5 {[%emt 0:7:17]} exd5 {[%emt 0:0:12]} 17. b4 {[%emt 0:0:52]} Rb8 {[%emt 0:7:16]} 18. Nb3 {[%emt 0:1:53]} Rf7 {[%emt 0:3:40]} 19. Na5 {[%emt 0:0:27]} Qf6 {[%emt 0:0:12]} 20. a4 {[%emt 0:17:6]} a6 {[%emt 0:0:6]} 21. axb5 {[%emt 0:1:39]} axb5 {[%emt 0:0:5]} 22. Rae1 {[%emt 0:1:13]} Nf8 {[%emt 0:0:21]} 23. g3 {[%emt 0:0:51]} Bd7 {[%emt 0:4:38]} 24. Qd2 {[%emt 0:1:33]} Re8 {[%emt 0:5:6]} 25. Rxe8 {[%emt 0:15:12]} Bxe8 {[%emt 0:0:2]} 26. Bc2 {[%emt 0:0:51]} Ng6 {[%emt 0:4:46]} 27. Nb3 {[%emt 0:2:22]} Re7 {[%emt 0:5:47]} 28. Nc1 {[%emt 0:4:39]} f4 {[%emt 0:1:35]} 29. g4 {[%emt 0:1:7]} h5 {[%emt 0:2:17]} 30. gxh5 {[%emt 0:4:2]} Nh4 {[%emt 0:0:9]} 31. Nd3 {[%emt 0:1:58]} Ngf5 {[%emt 0:2:43]} 32. Ne5 {[%emt 0:5:55]} Ne3 {[%emt 0:0:5]} 33. Rf2 {[%emt 0:0:58]} Bxh5 {[%emt 0:0:39]} 34. Bd1 {[%emt 0:0:40]} Qf5 {[%emt 0:5:14]} 35. Be2 {[%emt 0:1:54]} Ra7 {[%emt 0:3:35]} 36. Qd3 {[%emt 0:0:52]} Qh3 {[%emt 0:6:19]} 37. Bf1 {[%emt 0:0:36]} Qe6 {[%emt 0:0:12]} 38. Bc1 {[%emt 0:0:39]} Nc4 {[%emt 0:2:8]} 39. Re2 {[%emt 0:0:29]} Qf6 {[%emt 0:1:48]} 40. Ng4 {[%emt 0:0:31]} Bxg4 {[%emt 0:2:29]} 41. fxg4 {[%emt 0:2:54]} Qxd4+ {[%emt 0:12:57]} 42. Qxd4 {[%emt 0:11:47]} Nf3+ {[%emt 0:0:5]} 43. Kg2 {[%emt 0:0:11]} Nxd4 {[%emt 0:0:3]} 44. Rf2 {[%emt 0:0:23]} Ne3+ {[%emt 0:6:2]} 45. Bxe3 {[%emt 0:1:28]} fxe3 {[%emt 0:0:2]} 46. Rb2 {[%emt 0:2:21]} Ra1 {[%emt 0:5:20]} 47. Be2 {[%emt 0:3:11]} Re1 {[%emt 0:2:6]} 48. Bf3 {[%emt 0:0:51]} e2 {[%emt 0:0:49]} 49. Ra2 {[%emt 0:1:25]} Rg1+ {[%emt 0:0:25]} 50. Kh3 {[%emt 0:0:4]} e1=Q {[%emt 0:2:30]} 51. Bxd5+ {[%emt 0:0:14]} cxd5 {[%emt 0:0:5]} 52. Ra8+ {[%emt 0:0:7]} Kf7 {[%emt 0:0:2]} 0-1

[Event "57th Biel Festival MTO 2024"]
[White "Gueci,Tea"]
[Black "Thavandiran,Shiyam"]
[Site "Biel"]
[Round "6.31"]
[Annotator "ChessBase"]
[Result "0-1"]
[Date "2024.07.20"]
[WhiteElo "2228"]
[BlackElo "2387"]
[PlyCount "72"]
[TimeControl "60"]

1. e4 {[%emt 0:0:2]} e6 {[%emt 0:0:5]} 2. d4 {[%emt 0:0:3]} d5 {[%emt 0:0:3]} 3. e5 {[%emt 0:0:3]} c5 {[%emt 0:0:5]} 4. c3 {[%emt 0:0:2]} Nc6 {[%emt 0:0:4]} 5. Nf3 {[%emt 0:0:4]} Bd7 {[%emt 0:0:26]} 6. Be2 {[%emt 0:0:7]} Nge7 {[%emt 0:0:9]} 7. O-O {[%emt 0:0:5]} Nf5 {[%emt 0:0:9]} 8. dxc5 {[%emt 0:0:12]} Bxc5 {[%emt 0:0:42]} 9. b4 {[%emt 0:0:6]} Bb6 {[%emt 0:0:21]} 10. Bd3 {[%emt 0:0:12]} O-O {[%emt 0:0:48]} 11. Re1 {[%emt 0:1:1]} Nce7 {[%emt 0:3:0]} 12. Nbd2 {[%emt 0:17:43]} f6 {[%emt 0:6:24]} 13. exf6 {[%emt 0:7:14]} gxf6 {[%emt 0:14:27]} 14. c4 {[%emt 0:2:48]} e5 {[%emt 0:0:57]} 15. cxd5 {[%emt 0:5:13]} Nxd5 {[%emt 0:0:41]} 16. Ne4 {[%emt 0:2:45]} Kh8 {[%emt 0:20:37]} 17. Bb2 {[%emt 0:6:46]} Ng7 {[%emt 0:4:24]} 18. Qb3 {[%emt 0:4:55]} Nf4 {[%emt 0:5:29]} 19. Bc4 {[%emt 0:2:8]} Qe8 {[%emt 0:6:39]} 20. Nd6 {[%emt 0:27:36]} Qh5 {[%emt 0:3:38]} 21. Re4 {[%emt 0:6:18]} Qg4 {[%emt 0:16:4]} 22. Rxf4 {[%emt 0:9:17]} Qxf4 {[%emt 0:1:8]} 23. Bc1 {[%emt 0:4:53]} Qg4 {[%emt 0:0:24]} 24. h3 {[%emt 0:0:39]} Qg3 {[%emt 0:2:6]} 25. Be3 {[%emt 0:2:12]} Bxe3 {[%emt 0:0:16]} 26. Qxe3 {[%emt 0:0:11]} Qg6 {[%emt 0:0:8]} 27. Qb3 {[%emt 0:1:16]} Be8 {[%emt 0:10:18]} 28. Nh4 {[%emt 0:2:11]} Qh5 {[%emt 0:1:2]} 29. g3 {[%emt 0:0:21]} f5 {[%emt 0:1:29]} 30. Re1 {[%emt 0:2:14]} f4 {[%emt 0:0:42]} 31. Bd5 {[%emt 0:4:48]} fxg3 {[%emt 0:3:8]} 32. fxg3 {[%emt 0:0:9]} Qh6 {[%emt 0:1:7]} 33. Nxb7 {[%emt 0:1:4]} Bc6 {[%emt 0:1:13]} 34. Nc5 {[%emt 0:2:54]} Qd2 {[%emt 0:1:35]} 35. Bxc6 {[%emt 0:0:0]} Qxe1+ {[%emt 0:0:34]} 36. Kh2 {[%emt 0:0:0]} Rad8 {[%emt 0:0:29]} 0-1

[Event "57th Biel Festival MTO 2024"]
[White "Munguntuul,Batkhuyag"]
[Black "Papaux,Steve"]
[Site "Biel"]
[Round "6.32"]
[Annotator "ChessBase"]
[Result "1-0"]
[Date "2024.07.20"]
[WhiteElo "2376"]
[BlackElo "2188"]
[PlyCount "121"]
[TimeControl "60"]

1. e4 {[%emt 0:0:30]} e5 {[%emt 0:0:6]} 2. Nf3 {[%emt 0:0:0]} Nc6 {[%emt 0:0:4]} 3. Bb5 {[%emt 0:0:0]} a6 {[%emt 0:0:3]} 4. Ba4 {[%emt 0:0:0]} Nf6 {[%emt 0:0:4]} 5. d3 {[%emt 0:0:0]} b5 {[%emt 0:0:11]} 6. Bb3 {[%emt 0:0:0]} Bc5 {[%emt 0:0:4]} 7. Nc3 {[%emt 0:0:12]} d6 {[%emt 0:0:51]} 8. Nd5 {[%emt 0:0:40]} h6 {[%emt 0:2:16]} 9. c3 {[%emt 0:1:15]} Be6 {[%emt 0:1:39]} 10. O-O {[%emt 0:7:19]} Bxd5 {[%emt 0:2:53]} 11. exd5 {[%emt 0:0:5]} Ne7 {[%emt 0:0:3]} 12. d4 {[%emt 0:2:39]} exd4 {[%emt 0:0:4]} 13. Nxd4 {[%emt 0:1:1]} O-O {[%emt 0:1:9]} 14. Qd3 {[%emt 0:12:30]} Qd7 {[%emt 0:1:2]} 15. a4 {[%emt 0:15:36]} Rab8 {[%emt 0:3:42]} 16. axb5 {[%emt 0:5:54]} axb5 {[%emt 0:0:14]} 17. Nc6 {[%emt 0:2:25]} Nxc6 {[%emt 0:1:1]} 18. dxc6 {[%emt 0:0:2]} Qxc6 {[%emt 0:3:25]} 19. Bxh6 {[%emt 0:2:9]} Qe4 {[%emt 0:0:8]} 20. Qg3 {[%emt 0:4:56]} Qg4 {[%emt 0:0:25]} 21. Qxg4 {[%emt 0:2:6]} Nxg4 {[%emt 0:0:5]} 22. Bf4 {[%emt 0:1:54]} b4 {[%emt 0:1:4]} 23. Rab1 {[%emt 0:5:13]} Rfe8 {[%emt 0:1:39]} 24. Bg3 {[%emt 0:1:45]} Nf6 {[%emt 0:3:38]} 25. Ba4 {[%emt 0:8:47]} Re2 {[%emt 0:1:38]} 26. Bd1 {[%emt 0:5:18]} Re6 {[%emt 0:17:54]} 27. Bb3 {[%emt 0:3:16]} Re7 {[%emt 0:1:18]} 28. Bh4 {[%emt 0:0:42]} Re2 {[%emt 0:0:20]} 29. Bxf6 {[%emt 0:13:2]} gxf6 {[%emt 0:0:4]} 30. g3 {[%emt 0:0:10]} Kg7 {[%emt 0:2:16]} 31. Kg2 {[%emt 0:0:13]} Rd2 {[%emt 0:0:30]} 32. g4 {[%emt 0:3:51]} Re8 {[%emt 0:2:13]} 33. Bd1 {[%emt 0:0:22]} Re4 {[%emt 0:0:37]} 34. Bf3 {[%emt 0:5:26]} Rc4 {[%emt 0:0:15]} 35. cxb4 {[%emt 0:0:23]} Rxb4 {[%emt 0:2:30]} 36. b3 {[%emt 0:0:3]} f5 {[%emt 0:0:59]} 37. gxf5 {[%emt 0:3:43]} Rd3 {[%emt 0:1:29]} 38. Bd1 {[%emt 0:0:20]} Kf6 {[%emt 0:1:5]} 39. Rb2 {[%emt 0:0:12]} Rb8 {[%emt 0:1:3]} 40. h3 {[%emt 0:2:37]} d5 {[%emt 0:3:7]} 41. Bf3 {[%emt 0:7:4]} Kxf5 {[%emt 0:3:53]} 42. Rd1 {[%emt 0:0:17]} Rg8+ {[%emt 0:1:18]} 43. Bg4+ {[%emt 0:6:46]} Ke4 {[%emt 0:0:7]} 44. Re2+ {[%emt 0:0:32]} Kd4 {[%emt 0:0:5]} 45. Rxd3+ {[%emt 0:0:6]} Kxd3 {[%emt 0:0:5]} 46. Re5 {[%emt 0:0:4]} c6 {[%emt 0:2:28]} 47. Rf5 {[%emt 0:0:2]} Rg7 {[%emt 0:0:7]} 48. Kf3 {[%emt 0:1:44]} Bd4 {[%emt 0:1:8]} 49. Bh5 {[%emt 0:3:38]} f6 {[%emt 0:0:31]} 50. Be8 {[%emt 0:0:4]} Rc7 {[%emt 0:1:25]} 51. h4 {[%emt 0:0:27]} Be5 {[%emt 0:1:2]} 52. h5 {[%emt 0:2:17]} Kc3 {[%emt 0:1:23]} 53. h6 {[%emt 0:1:14]} d4 {[%emt 0:0:20]} 54. Kg4 {[%emt 0:6:51]} Kxb3 {[%emt 0:2:11]} 55. Rf3+ {[%emt 0:0:7]} Kc4 {[%emt 0:0:8]} 56. Bg6 {[%emt 0:1:23]} f5+ {[%emt 0:2:54]} 57. Rxf5 {[%emt 0:0:42]} Kd5 {[%emt 0:1:28]} 58. f4 {[%emt 0:0:27]} d3 {[%emt 0:1:8]} 59. Rxe5+ {[%emt 0:2:31]} Kc4 {[%emt 0:0:7]} 60. Re4+ {[%emt 0:0:43]} Kc3 {[%emt 0:0:7]} 61. Re3 {[%emt 0:15:5]} 1-0

[Event "57th Biel Festival MTO 2024"]
[White "Arsenie,Cristian Marc"]
[Black "Padmini,Rout"]
[Site "Biel"]
[Round "6.33"]
[Annotator "RC"]
[Result "1/2-1/2"]
[Date "2024.07.20"]
[WhiteElo "2121"]
[BlackElo "2348"]
[PlyCount "41"]
[TimeControl "60"]

1. e4 {[%emt 0:0:3]} e5 {[%emt 0:0:9]} 2. Nf3 {[%emt 0:0:7]} Nc6 {[%emt 0:0:4]} 3. Bc4 {[%emt 0:0:8]} Bc5 {[%emt 0:0:35]} 4. d3 {[%emt 0:0:17]} Nf6 {[%emt 0:0:9]} 5. c3 {[%emt 0:1:2]} O-O {[%emt 0:4:9]} 6. O-O {[%emt 0:0:12]} d5 {[%emt 0:1:22]} 7. exd5 {[%emt 0:0:12]} Nxd5 {[%emt 0:0:3]} 8. Re1 {[%emt 0:0:43]} Nb6 {[%emt 0:3:26]} 9. Bg5 {[%emt 0:4:26]} Be7 {[%emt 0:4:19]} 10. Bxe7 {[%emt 0:1:34]} Qxe7 {[%emt 0:0:18]} 11. Bb3 {[%emt 0:17:27]} Qd6 {[%emt 0:6:53]} 12. Qe2 {[%emt 0:3:39]} Bg4 {[%emt 0:6:11]} 13. Nbd2 {[%emt 0:4:45]} Rad8 {[%emt 0:9:56]} 14. Qe4 {[%emt 0:3:23]} Bxf3 {[%emt 0:6:19]} 15. Nxf3 {[%emt 0:0:31]} Qxd3 {[%emt 0:0:15]} 16. Qxd3 {[%emt 0:5:14]} Rxd3 {[%emt 0:0:5]} 17. Nxe5 {[%emt 0:0:8]} Nxe5 {[%emt 0:0:3]} 18. Rxe5 {[%emt 0:0:10]} Rd7 {[%emt 0:0:49]} 19. Rae1 {[%emt 0:7:13]} Nc8 {[%emt 0:0:28]} 20. g3 {[%emt 0:3:26]} Rd2 {[%emt 0:2:55]} 21. R1e2 {[%emt 0:0:29]} 1/2-1/2